[Event "34th MPL National U14-ch 2022"]
[Site "Ahmedabad"]
[Date "2022.05.12"]
[Round "8.4"]
[White "Md Imran"]
[Black "Bagwe Gaurang"]
[Result "1/2-1/2"]
[ECO "D18"]
[WhiteElo "2122"]
[BlackElo "1789"]
[Annotator "TA"]
[PlyCount "65"]
[EventDate "2022.05.09"]
[EventType "swiss"]
[EventCountry "IND"]
[SourceTitle "playchess.com"]
[Source "ChessBase"]
[SourceQuality "1"]
[TimeControl "5400+30"]

{[%evp 17,65,28,46,0,0,-20,0,0,-14,0,21,-40,-43,-45,-45,-50,-50,-48,0,0,0,0,0,-29,0,-24,-32,-22,-17,-14,-15,-31,43,-9,0,0,0,0,0,0,0,0,0,0,0,0,0,0,0,0]} 1. d4 {[%emt 0:00:05]} d5 {[%emt 0:00:05]} 2. Nf3 {[%emt 0:00:07]} c6 {[%emt 0:00:07]} 3. c4 {[%emt 0:00:51]} Nf6 {[%emt 0:00:15]} 4. Nc3 {[%emt 0:00:03]} dxc4 {[%emt 0:00:03]} 5. a4 {[%emt 0:00:03]} Bf5 {[%emt 0:00:10]} 6. e3 {[%emt 0:00:06]} e6 {[%emt 0:00:06]} 7. Bxc4 {[%emt 0:00:02]} Nbd7 {[%emt 0:03:09]} 8. O-O {[%emt 0:00:17]} Bb4 {[%emt 0:00:07]} 9. Nh4 {[%emt 0:00:36]} Bg4 {[%emt 0:00:47] 9...0-0 is setting a new trend.} 10. Qb3 {[%emt 0:00:48] D18: Slav Defence: 5 a4 Bf5 6 e3.} (10. f3 Bh5 11. e4) (10. f3 $14 {deserves consideration.} Bh5 11. e4) 10... a5 $11 {[%emt 0:00:32]} 11. Na2 {[%emt 0:06:00]} Be7 {[%emt 0:00:27]} 12. f3 {[%emt 0:00:36]} Bh5 {[%emt 0:00:19]} 13. g4 {[%emt 0:01:23]} Nd5 {[%emt 0:04:08] [#]} 14. Nf5 $146 {[%emt 0:05:11]} (14. Ng2 Bg6 15. e4 N5b6 16. Be2 O-O 17. Be3 Bd6 18. Nc3 Bb4 19. Rad1 Qe7 20. Kh1) (14. Ng2 $11 Bg6 15. e4) ({Predecessor:} 14. Ng2 Bg6 15. e4 N5b6 16. Be2 O-O 17. Be3 Bd6 18. Nc3 Bb4 19. Rad1 Qe7 20. Kh1 {½-½ (69) Wessman,R (2245)-Cramling,P (2455) Stockholm 1987}) 14... exf5 $15 {[%emt 0:02:42]} 15. gxh5 {[%emt 0:00:02]} N7b6 {[%emt 0:02:41]} 16. Bxd5 {[%emt 0:07:17]} Nxd5 {[%emt 0:00:26]} 17. Qxb7 {[%emt 0:04:05]} O-O {[%emt 0:01:23]} (17... Rc8 $1 $15) 18. Qxc6 $11 {[%emt 0:08:29]} Rc8 {[%emt 0:03:05]} 19. Qb5 {[%emt 0:00:19][%cal Oa2c3]} Bd6 {[%emt 0:01:12] Strongly threatening ...Qg5+.} 20. f4 {[%emt 0:10:19] [#] Prevents Qg5+.} (20. Rf2) 20... Qh4 $1 {[%emt 0:02:56][%cal Oc8c2]} 21. Nc3 {[%emt 0:06:27]} (21. Qxd5 Rc2 22. Qg2 Rxg2+ 23. Kxg2 Qg4+ 24. Kh1 Qxh5) (21. Rf2 Qg4+ 22. Rg2 Qd1+ 23. Qf1 Qxf1+ 24. Kxf1) (21. Qxd5 $2 Rc2 $1 22. Qg2 Rxg2+ 23. Kxg2 Rb8 $19) (21. Rf2 Qg4+) 21... Qg4+ {[%emt 0:19:47]} 22. Kh1 {[%emt 0:00:04]} Nxc3 {[%emt 0:01:30]} 23. bxc3 {[%emt 0:00:02]} Rxc3 {[%emt 0:00:15] ( -> ...Rc2)} 24. Ra2 {[%emt 0:05:43] Against Rc2} Rb8 {[%emt 0:03:57]} (24... Rfc8 25. Rg2 Qxh5) (24... Rfc8 $15 25. Rg2 Qxh5) 25. Qd5 {[%emt 0:02:52]} (25. Qxa5 Rd3 26. Qe1) (25. Qxa5 $14 Rd3 26. Qe1) 25... Rb1 {[%emt 0:02:41] The position is equal.} 26. Qxd6 {[%emt 0:03:21][%cal Rd6d8] Chess con chili.} h6 $1 {[%emt 0:00:17]} 27. Rg2 $1 {[%emt 0:01:06]} (27. Qd8+ Kh7 28. Rg2 Qf3) (27. Qd8+ {leads to mate.} Kh7 28. Rg2 {[#]} Qf3 $3 {[%mdl 512]}) 27... Qf3 {[%emt 0:01:16]} 28. Qb8+ $1 {[%emt 0:02:54]} (28. Rxf3 $2 {gets mated.} Rcxc1+) (28. Qd8+ Kh7) 28... Kh7 {[%emt 0:00:32]} 29. Qxb1 {[%emt 0:00:58]} (29. Rxf3 $2 {is a self mate.} Rcxc1+) 29... Qxf1+ {[%emt 0:02:27]} 30. Rg1 {[%emt 0:00:01]} Qf3+ {[%emt 0:02:49]} 31. Rg2 {[%emt 0:00:02] Hoping for Bd2.} Qf1+ {[%emt 0:01:14]} 32. Rg1 {[%emt 0:00:02]} Qf3+ {[%emt 0:00:01]} 33. Rg2 {[%emt 0:00:33] Weighted Error Value: White=0.15 (very precise) /Black=0.14 (very precise)} 1/2-1/2

[Event "34th MPL National U14-ch 2022"]
[Site "Ahmedabad"]
[Date "2022.05.12"]
[Round "8.5"]
[White "Shaik Sumer Arsh"]
[Black "Aswath S"]
[Result "1/2-1/2"]
[ECO "D31"]
[WhiteElo "1999"]
[BlackElo "1694"]
[Annotator "TA"]
[PlyCount "77"]
[EventDate "2022.05.09"]
[EventType "swiss"]
[EventCountry "IND"]
[SourceTitle "playchess.com"]
[Source "ChessBase"]
[SourceQuality "1"]
[TimeControl "5400+30"]

{[%evp 16,77,0,19,28,-47,29,-56,0,-23,-22,-39,-14,-54,-5,-25,-24,-91,-93,-144,-164,-385,-400,-406,-344,-410,-425,-373,-378,-381,-112,-97,-110,-97,-98,-119,-103,-121,-112,-96,-38,-48,-46,-52,-51,-52,-52,-52,-52,-58,-43,-68,-43,-45,-8,-8,-10,-12,-9,-9,-9,-22,-22,-28]} 1. d4 {[%emt 0:00:07]} d5 {[%emt 0:00:07]} 2. c4 {[%emt 0:00:07]} e6 {[%emt 0:00:05]} 3. Nc3 {[%emt 0:00:08]} c6 {[%emt 0:00:04]} 4. e4 {[%emt 0:00:13]} dxe4 {[%emt 0:00:15]} 5. Nxe4 {[%emt 0:00:03]} Bb4+ {[%emt 0:00:09]} 6. Bd2 {[%emt 0:00:22]} Qxd4 {[%emt 0:00:59]} 7. Bxb4 {[%emt 0:00:03]} Qxe4+ {[%emt 0:00:15]} 8. Be2 {[%emt 0:00:07]} Na6 {[%emt 0:03:26]} 9. Ba5 {[%emt 0:00:18][%csl Ga5][%cal Rd1d8]} b6 {[%emt 0:00:22] [#] D31: Queen's Gambit Declined: Semi-Slav without ...Nf6 (+ Marshall Gambit and Noteboom) and Exchange Variation lines without ...Nf6.} 10. Bc3 {[%emt 0:00:04]} (10. Qd6 $1 $11 e5 (10... Bd7 11. Bc3) 11. Rd1 $1 (11. f3 Qh4+ 12. g3 Qf6 $15)) 10... Nf6 {[%emt 0:04:07]} (10... Qxg2 $2 11. Bf3 Qg6 12. Bxc6+ Ke7 13. Nf3 $18) (10... Ne7 $15) 11. Nf3 {[%emt 0:08:24]} ({Better is} 11. Qd6 $11 Bd7 12. Nf3 (12. Bxf6 gxf6 13. Rd1 O-O-O $17)) 11... O-O {[%emt 0:04:16]} (11... Bb7 $1 $15) 12. O-O {[%emt 0:01:24]} Bb7 {[%emt 0:04:09] [#]} 13. Bd3 $146 {[%emt 0:27:42]} (13. Ne5 {looks sharper.} Rfd8 14. Bd3 Qh4 15. Qf3) ({Predecessor:} 13. Re1 Rfd8 14. Qc1 c5 15. a3 Nc7 16. Bf1 Qg4 17. h3 Qg6 18. Ne5 Qh5 19. g4 {1-0 (28) Kurbasov,S (2288)-Karasev,V ICCF email 2010}) 13... Qg4 {[%emt 0:00:48]} 14. h3 {[%emt 0:00:40]} Qh5 {[%emt 0:00:20]} (14... Qf4 $15) 15. Re1 {[%emt 0:02:21]} c5 $1 {[%emt 0:04:07] Black wants to play ...Bxf3.} 16. Re5 {[%emt 0:03:12]} (16. Ne5 $11) 16... Bxf3 $17 {[%emt 0:00:53]} 17. Qc1 {[%emt 0:14:09]} (17. Qa4 $142 Qh4 18. Qxa6) 17... Qh4 {[%emt 0:03:45][%cal Oa8d8] Threatens to win with ...Rad8!} 18. Rg5 $2 {[%emt 0:09:42]} (18. Qg5 Qxg5 19. Rxg5) 18... h6 $19 {[%emt 0:02:04]} 19. Rg3 {[%emt 0:03:31]} Bh5 {[%emt 0:01:22]} 20. Qe3 {[%emt 0:10:11]} (20. Qxh6 Qxg3 $3 {[%mdl 512]} 21. fxg3 gxh6 $19) 20... Nb4 {[%emt 0:05:17]} (20... Kh8 $2 21. a3 $19) 21. Rxg7+ {[%emt 0:01:18]} Kxg7 {[%emt 0:02:51]} 22. g3 {[%emt 0:00:02][%cal Bg2g3,Bg3g4,Bg4g5][%mdl 32] [#]} Qg5 {[%emt 0:02:35]} ({Stronger than} 22... Qxh3 23. Qe5 Rfd8 24. Qxf6+ Kf8 25. Be4 $15) (22... Qd4 $1 $19 {[%cal Rd4e3]} 23. Bxd4 cxd4) 23. f4 $17 {[%emt 0:00:07] [#]} Nbd5 $1 {[%emt 0:00:04]} 24. cxd5 {[%emt 0:03:07]} Qxd5 {[%emt 0:01:29]} 25. Be4 {[%emt 0:01:00] [#]} Qd6 $1 {[%emt 0:11:11]} 26. Be5 {[%emt 0:00:52] [#] This bishop pair is nice.} Qe7 {[%emt 0:02:39][%cal Og7g8] White must now prevent ...Kg8!} 27. g4 {[%emt 0:00:41] [#] And now g5 would win.} Bg6 $1 {[%emt 0:01:16]} 28. g5 $15 {[%emt 0:00:20][%mdl 64] [#] Pin} Qd7 $1 {[%emt 0:02:55]} 29. Bxf6+ {[%emt 0:00:11]} Kg8 $1 {[%emt 0:01:21] Hoping for ...Bxe4.} 30. gxh6 {[%emt 0:07:52]} Kh7 $1 {[%emt 0:01:07] ...Rac8 is the strong threat.} 31. Bxa8 {[%emt 0:01:37]} Rxa8 {[%emt 0:00:07]} 32. Kf2 {[%emt 0:02:56]} Qd5 {[%emt 0:01:04]} 33. h4 {[%emt 0:02:57]} Qf5 {[%emt 0:00:40]} 34. Qe5 {[%emt 0:00:24]} Qxe5 {[%emt 0:02:36]} (34... Qc2+ {is more complex.} 35. Qe2 Qxe2+ 36. Kxe2 a5) 35. fxe5 {[%emt 0:00:07] The position is equal.} Kxh6 {[%emt 0:00:28]} 36. Rd1 {[%emt 0:00:36]} b5 {[%emt 0:01:03]} 37. Rd7 {[%emt 0:00:38]} c4 {[%emt 0:01:13]} 38. Rb7 {[%emt 0:00:53]} a6 {[%emt 0:00:14]} 39. Rb6 {[%emt 0:00:34] White happily takes the draw.  Weighted Error Value: White=0.27 (precise) /Black=0.30} 1/2-1/2

[Event "34th MPL National U14-ch 2022"]
[Site "Ahmedabad"]
[Date "2022.05.12"]
[Round "8.6"]
[White "Abhash Roimya Saikia"]
[Black "Samyak Dharewa"]
[Result "1-0"]
[ECO "B46"]
[WhiteElo "1794"]
[BlackElo "1586"]
[Annotator "NA RC COMBH"]
[PlyCount "64"]
[EventDate "2022.05.09"]
[EventType "swiss"]
[EventCountry "IND"]
[SourceTitle "playchess.com"]
[Source "ChessBase"]
[SourceQuality "1"]
[TimeControl "5400+30"]

1. e4 c5 2. Nc3 e6 3. g3 Nc6 4. Bg2 Nge7 5. Nge2 a6 6. d4 cxd4 7. Nxd4 Nxd4 8. Qxd4 Nc6 9. Qd1 b5 10. Bf4 d6 11. O-O Qc7 12. Qd2 Bb7 13. Rad1 Ne5 14. Bxe5 dxe5 15. Qg5 h6 16. Qg4 Rd8 17. a3 Qe7 18. Kh1 Rxd1 19. Rxd1 Qf6 20. Qe2 Bc5 21. Nxb5 O-O 22. Nd6 Ba8 23. f3 Rd8 24. Nc4 h5 25. Rxd8+ Qxd8 26. Qd2 Qd4 27. Qxd4 exd4 28. Bf1 Bb7 29. b4 Be7 30. Na5 Bc8 31. Nc6 Bd6 32. e5 {[%emt 0:16:00]} Bc7 {[%emt 0:16:00]} 1-0

[Event "34th MPL National U14-ch 2022"]
[Site "Ahmedabad"]
[Date "2022.05.12"]
[Round "8.7"]
[White "Arpith S Bijoy"]
[Black "Ilamparthi A R"]
[Result "1/2-1/2"]
[ECO "E60"]
[WhiteElo "1713"]
[BlackElo "2121"]
[Annotator "TA"]
[PlyCount "87"]
[EventDate "2022.05.09"]
[EventType "swiss"]
[EventCountry "IND"]
[SourceTitle "playchess.com"]
[Source "ChessBase"]
[SourceQuality "1"]
[TimeControl "5400+30"]

{[%evp 14,87,33,1,29,25,46,8,-7,-17,4,0,0,-41,-5,-22,-28,-33,4,0,1,0,3,0,0,2,35,44,35,34,91,79,70,77,81,77,97,87,115,107,101,109,144,116,133,122,156,91,89,90,104,38,38,38,33,30,53,48,46,11,8,15,8,0,0,0,0,0,0,0,0,0,0,0,8,0]} 1. d4 {[%emt 0:00:30]} Nf6 {[%emt 0:00:30]} 2. c4 {[%emt 0:00:30]} g6 {[%emt 0:00:30]} 3. g3 {[%emt 0:00:30]} Bg7 {[%emt 0:00:30]} 4. Bg2 {[%emt 0:00:30]} O-O {[%emt 0:00:30]} 5. Nf3 {[%emt 0:00:30]} d6 {[%emt 0:00:30]} 6. O-O {[%emt 0:00:30]} Nbd7 {[%emt 0:00:30]} 7. b3 {[%emt 0:00:30]} e5 {[%emt 0:00:30]} 8. Bb2 {[%emt 0:00:30][%cal Rd4e5]} (8. Nc3 $5 {[%cal Rd4e5]}) 8... Qe7 {[%emt 0:00:30] E60: King's Indian: Unusual lines and Fianchetto Variation without Nc3.} 9. e3 {[%emt 0:00:30]} Re8 {[%emt 0:00:30]} 10. dxe5 {[%emt 0:00:30]} dxe5 {[%emt 0:00:30]} 11. Nc3 {[%emt 0:00:30]} (11. Ba3 $5 {[%cal Ra3e7]} Nc5 12. Nc3 $11) 11... c6 {[%emt 0:00:30] [#]} 12. Nd2 $146 {[%emt 0:00:30]} ({Predecessor:} 12. Qc2 Nf8 13. h3 h5 14. Rad1 e4 15. Nd4 N8h7 16. Nce2 Bd7 17. c5 Nd5 18. a3 a5 {½-½ (75) Titz,H (2158)-Zhelnin,V (2471) Katerini 2014}) 12... Nc5 {[%emt 0:00:30]} 13. Nce4 {[%emt 0:00:30]} Bf5 {[%emt 0:00:30][%cal Rf6e4]} 14. Nxf6+ {[%emt 0:00:30]} Qxf6 {[%emt 0:00:30]} 15. Ba3 {[%emt 0:00:30]} Na6 {[%emt 0:00:30]} 16. Ne4 {[%emt 0:00:30]} Bxe4 {[%emt 0:00:30]} 17. Bxe4 {[%emt 0:00:30][%cal Bg2e4,Be4c2,Bc2b3][%mdl 32]} Qe6 {[%emt 0:00:30]} 18. Qe2 {[%emt 0:00:30]} f5 {[%emt 0:00:30]} 19. Bc2 {[%emt 0:00:30]} Bf8 {[%emt 0:00:30]} 20. c5 {[%emt 0:00:30]} Nc7 {[%emt 0:00:30]} (20... Bxc5 $2 21. b4 Nc7 22. bxc5 $18) 21. b4 {[%emt 0:00:30]} Qe7 {[%emt 0:00:30]} (21... a5 $14) 22. Bb3+ $16 {[%emt 0:00:30]} Kh8 {[%emt 0:00:30]} 23. Bb2 {[%emt 0:00:30]} ({But not} 23. Qc4 Bg7 $11) 23... Bg7 {[%emt 0:00:30]} 24. Rad1 {[%emt 0:00:30]} Rad8 {[%emt 0:00:30] Prevents Rd6.} 25. e4 {[%emt 0:00:30] Against Nd5. White is more active.} f4 {[%emt 0:00:30] [#]} 26. Rxd8 $1 {[%emt 0:00:30]} Rxd8 {[%emt 0:00:30]} 27. Rd1 {[%emt 0:00:30]} fxg3 {[%emt 0:00:30]} 28. hxg3 {[%emt 0:00:30]} ({Reject} 28. fxg3 $6 Nb5 $14) 28... Nb5 {[%emt 0:00:30]} 29. Rxd8+ {[%emt 0:00:30]} Qxd8 {[%emt 0:00:30]} 30. Qg4 {[%emt 0:00:30]} ({White should try} 30. Qc4) 30... Nd4 {[%emt 0:00:30]} 31. Bc4 {[%emt 0:00:30]} Bf6 {[%emt 0:00:30]} 32. Kg2 {[%emt 0:00:30]} ({White should play} 32. Bxd4 $16 exd4 33. Qe6) 32... Kg7 $14 {[%emt 0:00:30]} 33. a3 {[%emt 0:00:30]} h5 {[%emt 0:00:30]} 34. Qd1 {[%emt 0:00:30]} h4 {[%emt 0:00:30]} 35. gxh4 {[%emt 0:00:30]} Bxh4 {[%emt 0:00:30]} 36. Qg4 {[%emt 0:00:30]} (36. f4 $5) 36... Qg5 {[%emt 0:00:30] The position is equal.} 37. Qxg5 {[%emt 0:00:30]} Bxg5 $11 {[%emt 0:00:30][%mdl 4096] Endgame KBB-KBN} 38. Kg3 {[%emt 0:00:30]} Bd2 {[%emt 0:00:30]} 39. Kg4 {[%emt 0:00:30][%cal Of2f4]} Kf6 {[%emt 0:00:30]} 40. f4 {[%emt 0:00:30]} Be3 {[%emt 0:00:30]} 41. fxe5+ {[%emt 0:00:30]} Kxe5 {[%emt 0:00:30]} 42. Bd3 {[%emt 0:00:30]} Bd2 {[%emt 0:00:30]} 43. Kg3 {[%emt 0:00:30]} g5 {[%emt 0:00:30]} 44. Kg4 {[%emt 0:00:30] Weighted Error Value: White=0.10 (very precise) /Black=0.13 (very precise)} 1/2-1/2

[Event "34th MPL National U14-ch 2022"]
[Site "Ahmedabad"]
[Date "2022.05.12"]
[Round "8.8"]
[White "Daakshin Arun"]
[Black "Agarwal Mukund H"]
[Result "1-0"]
[ECO "A77"]
[WhiteElo "2016"]
[BlackElo "1696"]
[Annotator "TA"]
[PlyCount "65"]
[EventDate "2022.05.09"]
[EventType "swiss"]
[EventCountry "IND"]
[SourceTitle "playchess.com"]
[Source "ChessBase"]
[SourceQuality "1"]
[TimeControl "5400+30"]

{[%evp 23,65,20,43,9,0,24,27,-42,-19,-39,-34,-20,41,26,248,228,605,518,1082,743,2038,1849,2002,1987,1859,1819,1818,1328,1277,1264,1306,1212,29979,29979,29975,5386,29980,29978,29976,29976,29982,29982,29986,29987]} 1. d4 {[%emt 0:00:30]} Nf6 {[%emt 0:00:30]} 2. c4 {[%emt 0:00:30]} c5 {[%emt 0:00:30]} 3. d5 {[%emt 0:00:30]} e6 {[%emt 0:00:30]} 4. Nc3 {[%emt 0:00:30]} exd5 {[%emt 0:00:30]} 5. cxd5 {[%emt 0:00:30]} d6 {[%emt 0:00:30]} 6. Nf3 {[%emt 0:00:30]} g6 {[%emt 0:00:30]} 7. Nd2 {[%emt 0:00:30]} Bg7 {[%emt 0:00:30]} 8. e4 {[%emt 0:00:30]} O-O {[%emt 0:00:30]} 9. Be2 {[%emt 0:00:30]} Re8 {[%emt 0:00:30]} 10. O-O {[%emt 0:00:30]} a6 {[%emt 0:00:30]} 11. a4 {[%emt 0:00:30]} Nbd7 {[%emt 0:00:30][%cal Bb8d7,Bd7e5,Be5g4][%mdl 32]} 12. Re1 {[%emt 0:00:30]} Ne5 {[%emt 0:00:30]} 13. f4 {[%emt 0:00:30] A77: Modern Benoni: Classical: 9...Re8 10 Nd2: 10...a6 and 10...Nbd7.} Neg4 {[%emt 0:00:30]} 14. Bf3 {[%emt 0:00:30]} ({Wrong is} 14. Nc4 $2 Nxe4 $1 15. Bxg4 Bxg4 16. Qxg4 Nxc3 $19) 14... Nxe4 {[%emt 0:00:30]} 15. Rxe4 {[%emt 0:00:30]} ({White should play} 15. Ncxe4 $11 Bd4+ 16. Kh1) 15... Bd4+ $15 {[%emt 0:00:30]} 16. Rxd4 $1 {[%emt 0:00:30]} cxd4 {[%emt 0:00:30]} ({Much less strong is} 16... Ne3 17. Qb3 $1 cxd4 18. Nde4 $14) 17. Nce4 {[%emt 0:00:30]} f5 {[%emt 0:00:30]} ({Black should try} 17... Ne3 $1 $11 18. Qb3 Qe7) 18. Ng5 $36 {[%emt 0:00:30][%mdl 2048] [#] And now Bxg4 would win. White has some pressure. Pair of Knights!} Qe7 $146 {[%emt 0:00:30] [#] This move loses the game for Black.} (18... d3 $1 $11 {and Black stays safe.} 19. Bxg4 fxg4) ({Predecessor:} 18... Ne3 19. Qb3 b5 20. axb5 Rb8 {½-½ (20) Lehikoinen,P (2262)-Kauko,J (2264) Finland 2003}) 19. Nf1 $1 $18 {[%emt 0:00:30] Threatens to win with b4.} Qe1 $2 {[%emt 0:00:30]} (19... h6) 20. Qxd4 {[%emt 0:00:30] Bxg4 is the strong threat.} Qa5 {[%emt 0:00:30]} (20... h6 $142 21. b3 Qf2+ 22. Qxf2 Nxf2 23. Kxf2 hxg5 24. fxg5 Bd7) 21. Bxg4 {[%emt 0:00:30] Strongly threatening b4.} fxg4 {[%emt 0:00:30]} 22. b4 {[%emt 0:00:30]} Qc7 {[%emt 0:00:30]} 23. Bb2 {[%emt 0:00:30][%csl Gb2][%cal Rd4h8]} Re5 {[%emt 0:00:30]} 24. fxe5 {[%emt 0:00:30]} dxe5 {[%emt 0:00:30]} 25. Qxe5 {[%emt 0:00:30]} Qxe5 {[%emt 0:00:30]} 26. Bxe5 {[%emt 0:00:30]} Bf5 {[%emt 0:00:30]} 27. Ne3 {[%emt 0:00:30]} Rd8 {[%emt 0:00:30]} 28. Nxf5 {[%emt 0:00:30]} gxf5 {[%emt 0:00:30]} 29. d6 {[%emt 0:00:30][%cal Bd5d6,Bd6d7][%mdl 32] Threatening mate with Rc1.} h6 {[%emt 0:00:30]} 30. Ne6 {[%emt 0:00:30] White mates.} Rd7 {[%emt 0:00:30]} 31. Nc5 {[%emt 0:00:30]} Rd8 {[%emt 0:00:30]} 32. Nxb7 {[%emt 0:00:30]} Rf8 {[%emt 0:00:30]} 33. d7 {[%emt 0:00:30] Weighted Error Value: White=0.24 (precise) /Black=1.31} 1-0

[Event "34th MPL National U14-ch 2022"]
[Site "Ahmedabad"]
[Date "2022.05.12"]
[Round "8.9"]
[White "Gandhi, Aakash"]
[Black "Sahib Singh"]
[Result "1/2-1/2"]
[ECO "D36"]
[WhiteElo "1698"]
[BlackElo "1991"]
[Annotator "TA"]
[PlyCount "61"]
[EventDate "2022.05.09"]
[EventType "swiss"]
[EventCountry "IND"]
[SourceTitle "playchess.com"]
[Source "ChessBase"]
[SourceQuality "1"]
[TimeControl "5400+30"]

{[%evp 21,61,12,22,24,29,16,31,25,26,12,31,20,38,4,10,11,14,0,0,0,0,0,0,0,14,8,9,13,38,8,110,63,66,19,21,17,27,-16,-2,-19,-5,-37]} 1. d4 d5 2. c4 e6 3. Nc3 Nf6 4. cxd5 exd5 5. Bg5 c6 6. e3 Be7 7. Bd3 h6 8. Bh4 Nbd7 9. Nge2 Nh5 10. Bxe7 Qxe7 11. Qc2 Nb6 12. O-O {D36: Queen's Gambit Declined: Exchange Variation: Main line (5 Bg5 c6 6 Qc2).} O-O 13. Rae1 Nf6 14. Ng3 {White is slightly better.} Be6 {[#]} 15. a3 $146 ({Predecessor:} 15. f3 c5 16. Nce2 cxd4 17. Nxd4 Rac8 18. Qf2 g6 19. h3 Nc4 20. f4 Ne4 21. Nxe4 dxe4 22. Bxe4 Bxh3 23. Bxg6 fxg6 24. gxh3 {1-0 (43) Nakhbayeva,G (2314)-Atalik,E (2451) Riadh 2017}) 15... a5 16. Rb1 Nbd7 17. a4 h5 18. Rfe1 h4 19. Nf5 Bxf5 20. Bxf5 g6 21. Bh3 Rfe8 22. f3 {[%cal Bf2f3,Bf3e4,Be4e5][%mdl 32]} Nf8 23. e4 dxe4 24. fxe4 Nh5 25. e5 Ne6 (25... f5 $11) 26. Bxe6 (26. Rbd1 $16) 26... Qxe6 $14 27. Qf2 (27. Re4 $14 {might be stronger.}) 27... h3 $11 28. g3 f5 29. Qf3 Rad8 30. Rbd1 Rd7 31. Rf1 {Weighted Error Value: White=0.14 (very precise) /Black=0.14 (very precise)} 1/2-1/2

[Event "34th MPL National U14-ch 2022"]
[Site "Ahmedabad"]
[Date "2022.05.12"]
[Round "8.10"]
[White "Ankit Ray"]
[Black "Mrithyunjay Mahadevan"]
[Result "0-1"]
[ECO "D91"]
[WhiteElo "1932"]
[BlackElo "1661"]
[Annotator "TA"]
[PlyCount "74"]
[EventDate "2022.05.09"]
[EventType "swiss"]
[EventCountry "IND"]
[SourceTitle "playchess.com"]
[Source "ChessBase"]
[SourceQuality "1"]
[TimeControl "5400+30"]

{[%evp 15,74,17,4,14,37,12,36,24,38,22,19,25,19,23,35,0,24,-44,0,-57,0,0,0,-183,-95,-121,-114,-106,-119,-121,0,-60,-62,-96,-88,-290,-261,-370,-357,-434,-229,-215,-216,-210,-210,-1524,-1574,-1754,-1750,-1541,-1503,-29975,-6793,-29988,-29989,-29989,-29987,-29987,-29987,-29988,-29970]} 1. d4 {[%emt 0:56:12]} Nf6 {[%emt 1:08:49]} 2. c4 {[%emt 0:00:30]} g6 {[%emt 0:00:30]} 3. Nc3 {[%emt 0:00:30]} d5 {[%emt 0:00:30]} 4. Bg5 {[%emt 0:00:30]} Ne4 {[%emt 0:00:30]} 5. Bf4 {[%emt 0:00:30]} Nxc3 {[%emt 0:00:30]} 6. bxc3 {[%emt 0:00:30]} dxc4 {[%emt 0:00:30]} 7. e3 {[%emt 0:00:30]} Be6 {[%emt 0:00:30]} 8. Nf3 {[%emt 0:00:30] 8.Qb1 is a critical line.} Bg7 {[%emt 0:00:30][%cal Oc7c5]} 9. Qb1 {[%emt 0:00:30] D91: Grünfeld: 4 Nf3 Bg7 5 Bg5.} Qd5 {[%emt 0:00:30]} 10. Bxc7 {[%emt 0:00:30]} Bf5 {[%emt 0:00:30] Prevents e4.} 11. Qb2 {[%emt 0:00:30] [#] White is slightly better.} O-O $146 {[%emt 0:00:30]} ({Predecessor:} 11... Nd7 12. Be2 Rc8 13. Bg3 O-O 14. O-O Bd3 15. Rfd1 Bxe2 16. Qxe2 Rfe8 17. a4 Qa5 {½-½ (74) Sanchez,A (2296)-Mende,I (2352) ICCF email 2014}) 12. Be5 {[%emt 0:00:30]} Rc8 {[%emt 0:00:30]} 13. Bxg7 {[%emt 0:00:30]} Kxg7 {[%emt 0:00:30]} 14. Be2 {[%emt 0:00:30]} Nd7 {[%emt 0:00:30]} 15. h4 {[%emt 0:00:30]} h5 {[%emt 0:00:30]} 16. Nd2 {[%emt 0:00:30]} (16. a4 $11) 16... e5 {[%emt 0:00:30]} (16... Qxg2 $2 17. Bf3 Qxh1+ 18. Bxh1 $18) 17. Bf3 {[%emt 0:00:30]} (17. O-O $11) 17... e4 {[%emt 0:00:30]} ({Better is} 17... Qe6 $15 18. d5 Qa6) 18. Be2 $11 {[%emt 0:00:30]} b5 {[%emt 0:00:30]} 19. Rg1 $2 {[%emt 0:00:30] [#]} (19. a4 $11) 19... Rab8 {[%emt 0:00:30]} ({Black should play} 19... Nf6 $19 20. a4 a6) 20. g4 $17 {[%emt 0:00:30]} hxg4 {[%emt 0:00:30]} 21. Bxg4 {[%emt 0:00:30]} Bxg4 {[%emt 0:00:30]} 22. Rxg4 {[%emt 0:00:30]} f5 {[%emt 0:00:30]} (22... b4 $17 {Hoping for ...Nf6.} 23. Rg5 Qe6) 23. Rg3 {[%emt 0:00:30]} (23. Rg5 $11) 23... Nf6 $15 {[%emt 0:00:30][%cal Ob5b4]} 24. Qb4 {[%emt 0:00:30]} Qd8 {[%emt 0:00:30] Active counter play!} 25. Qa3 {[%emt 0:00:30] Now White is beyond hope.} (25. O-O-O $17) 25... a5 $19 {[%emt 0:00:30]} 26. Rb1 {[%emt 0:00:30]} (26. Ke2 {was called for.} b4 27. cxb4) 26... Kh6 {[%emt 0:00:30]} 27. Ke2 {[%emt 0:00:30]} Qc7 {[%emt 0:00:30]} (27... b4 $142 28. cxb4 c3) 28. Rbg1 {[%emt 0:00:30]} Rg8 {[%emt 0:00:30]} 29. Qc1 {[%emt 0:00:30] [#]} b4 $1 {[%emt 0:00:30]} 30. Qf1 $2 {[%emt 0:00:30]} (30. Nb1) 30... bxc3 {[%emt 0:00:30]} 31. Qg2 {[%emt 0:00:30]} Qf7 {[%emt 0:00:30]} 32. h5 Nxh5 33. Rg5 {[%emt 0:01:00]} cxd2 {[%emt 0:01:00]} 34. Qh2 {[%emt 0:00:30]} c3 {[%emt 0:00:30] Black mates.} 35. d5 {[%emt 0:00:30]} d1=Q+ {[%emt 0:00:30]} 36. Rxd1 {[%emt 0:00:30]} Rb2+ {[%emt 0:00:30]} 37. Kf1 {[%emt 0:00:30]} Kxg5 {[%emt 0:00:30] Weighted Error Value: White=0.83/Black=0.21 (precise)} 0-1